bitfinex/quotes_ETHUSD_20250131
["timestamp","ask_amount","ask_price","bid_price","bid_amount"]
[1738285307623,3.05801,3270.1,3269.5,3.05853]
[1738285308171,3.72424667,3270.6,3269.8,0.7699]
[1738285308372,0.66666667,3270.6,3269.9,0.55]
[1738285308671,0.66666667,3270.6,3270.1,3.05793]
[1738285308981,0.66666667,3270.6,3269.9,3.63877061]
[1738285309164,0.66666667,3270.6,3270.0,0.205]
[1738285310443,0.66666667,3270.6,3270.0,3.26309]
[1738285310633,0.66666667,3270.6,3270.1,35.0]
[1738285310830,0.66666667,3270.6,3270.0,3.26309]
[1738285311172,0.66666667,3270.6,3270.1,3.05798]
[1738285311365,0.66666667,3270.6,3270.2,35.0]
[1738285311723,0.66666667,3270.6,3270.1,3.05798]
[1738285311963,0.66666667,3270.6,3270.2,0.326298]
[1738285312122,0.66666667,3270.6,3270.2,35.326298]
[1738285312337,0.66666667,3270.6,3270.2,0.326298]
[1738285314384,3.72420667,3270.6,3270.1,0.204]
[1738285314582,0.66666667,3270.6,3270.1,0.204]
[1738285315377,0.66666667,3270.6,3270.0,3.08866778]
[1738285315553,0.66666667,3270.6,3270.1,0.204]
[1738285317858,0.66666667,3270.6,3270.0,3.05809]
[1738285318063,0.66666667,3270.6,3270.5,3.07263]
[1738285318247,0.66666667,3270.6,3270.5,7.41099887]
[1738285318587,0.66666667,3270.6,3270.5,42.38043]
[1738285318962,0.53405776,3270.6,3270.5,42.38043]
[1738285319275,0.09502769,3270.8,3270.7,3.84644]
[1738285319456,0.09502769,3270.8,3270.7,7.42700575]
[1738285319654,0.09502769,3270.8,3270.7,7.39644]
[1738285320888,0.09502769,3270.8,3270.7,7.60044]
[1738285322840,3.05635,3271.9,3271.1,3.05699]
[1738285323046,3.05635,3271.9,3271.2,0.04556528]
[1738285323345,3.05626,3272.0,3271.2,3.65254528]
[1738285324189,3.05635,3271.9,3271.2,3.85654528]
[1738285324356,3.80645,3271.9,3271.2,3.85654528]
[1738285325782,3.80645,3271.9,3271.2,3.65254528]
[1738285325987,3.05626,3272.0,3271.2,3.85654528]
[1738285326193,0.005,3273.4,3272.6,3.05561]
[1738285326346,0.005,3273.4,3272.7,0.9967]
[1738285326552,0.005,3273.4,3272.7,0.82325689]
[1738285326796,0.005,3273.4,3273.2,0.55]
[1738285327089,0.005,3273.4,3273.3,0.03054653]
[1738285327330,0.005,3273.4,3273.3,6.65056653]
[1738285327459,0.005,3273.4,3273.3,7.41272]
[1738285327662,0.005,3273.4,3273.3,42.41272]
[1738285328119,0.005,3273.4,3273.3,43.23620233]
[1738285328402,0.005,3273.4,3273.3,35.7655]
[1738285328995,0.005,3273.4,3273.3,35.5575]
[1738285329189,0.005,3273.4,3273.3,35.7655]
[1738285330010,0.005,3273.4,3272.4,3.05585]
[1738285330212,0.005,3273.4,3272.5,0.8263]
[1738285330213,3.05519,3273.2,3272.5,0.8263]
[1738285330362,3.05524,3273.1,3272.7,0.015]
[1738285330674,0.005,3273.4,3272.7,0.015]
[1738285330876,0.8076,3273.2,3272.5,0.208]
[1738285331208,3.05608,3272.2,3271.7,0.8123]
[1738285331363,3.05651,3271.7,3271.6,0.67149046]
[1738285331911,3.77,3273.0,3271.6,0.67149046]
[1738285332071,3.77,3273.0,3271.7,0.04556185]
[1738285332072,0.605532,3272.9,3271.7,0.04556185]
[1738285332271,3.05608,3272.2,3271.7,0.04556185]
[1738285332489,3.05608,3272.2,3271.8,35.0]
[1738285332874,3.05627,3272.0,3271.8,35.0]
[1738285333381,3.05567,3272.6,3271.8,35.0]
[1738285333584,3.05628,3272.0,3271.8,35.0]
[1738285333803,3.05632,3271.9,3271.8,35.0]
[1738285334955,3.05624,3272.0,3271.8,35.0]
[1738285335594,3.05577,3272.5,3271.9,0.565]
[1738285335930,3.05539,3272.9,3272.0,0.03055869]
[1738285336128,3.0555,3272.8,3272.1,0.55]
[1738285336430,3.05583,3272.5,3272.0,0.58055869]
[1738285336626,3.05583,3272.5,3272.0,0.55]
[1738285337491,3.05583,3272.5,3272.0,0.77215804]
[1738285338137,3.05583,3272.5,3272.1,0.2772268]
[1738285339040,3.05558,3272.7,3272.1,0.49938484]
[1738285339391,3.05558,3272.7,3272.1,0.52994198]
[1738285339891,3.05558,3272.7,3272.2,0.2772268]
[1738285340195,3.0557,3272.6,3272.2,0.2772268]
[1738285340594,3.0557,3272.6,3272.2,0.49938484]
[1738285340843,0.382539,3272.9,3272.2,0.49938484]
[1738285340844,0.03059222,3272.7,3272.2,0.49938484]
[1738285341041,3.83325,3272.3,3272.2,0.49938484]
[1738285341509,3.83325,3272.3,3272.2,0.22215804]
[1738285342109,6.83325,3272.3,3272.2,0.22215804]
[1738285342318,6.83325,3272.3,3271.5,0.46349046]
[1738285342494,3.05649,3271.8,3271.5,0.46349046]
[1738285342697,3.05649,3271.8,3271.5,35.46349046]
[1738285342945,3.05625,3272.0,3271.5,35.46349046]
[1738285343247,3.05625,3272.0,3271.6,0.2783292]
[1738285343605,3.05643,3271.8,3271.6,0.2783292]
[1738285343935,3.05651,3271.7,3271.6,0.50092445]
[1738285347341,4.48309122,3271.7,3271.6,0.50092445]
[1738285347646,4.452499,3271.7,3271.6,0.50092445]
[1738285347847,3.84121,3271.7,3271.6,0.50092445]
[1738285348515,3.05651,3271.7,3271.6,0.2783292]
[1738285348901,3.05638,3271.9,3271.6,0.2783292]
[1738285349201,0.8123,3272.1,3271.6,0.2783292]
[1738285349202,3.05643,3271.8,3271.6,0.2783292]
[1738285349406,3.0564,3271.9,3271.7,35.0]
[1738285349601,3.0564,3271.9,3271.7,35.2783292]
[1738285350017,3.05642,3271.8,3271.7,35.2783292]
[1738285351646,3.05624,3272.0,3271.7,35.2783292]
[1738285351947,0.8123,3272.5,3271.8,0.55]
[1738285351948,3.05597,3272.3,3271.8,0.55]
[1738285352109,3.05578,3272.5,3271.9,3.85368063]
[1738285352308,0.62115408,3272.6,3271.9,0.7668]
[1738285352309,3.05586,3272.4,3271.9,0.7668]
[1738285352803,3.05586,3272.4,3271.9,1.0451292]
[1738285353228,3.67684408,3272.6,3272.0,35.0]
[1738285353431,3.05581,3272.5,3272.0,35.0]
[1738285353721,3.67684408,3272.6,3272.0,35.0]
[1738285354044,3.05548,3272.8,3272.2,0.015]
[1738285354952,3.05569,3272.6,3272.2,0.0075]
[1738285355452,3.05569,3272.6,3272.3,35.0]
[1738285355814,3.05569,3272.6,3272.3,35.2783292]
[1738285356926,3.05548,3272.8,3272.3,35.2783292]
[1738285357122,3.05531,3273.0,3272.3,35.2783292]
[1738285357123,3.05558,3272.7,3272.3,35.2783292]
[1738285357327,3.05558,3272.7,3272.4,0.2783292]
[1738285357942,3.05558,3272.7,3272.5,35.0]
[1738285358843,3.05558,3272.7,3272.6,0.2783292]
[1738285362559,0.03059222,3273.1,3272.6,0.2783292]
[1738285362731,3.05549,3272.8,3272.6,0.2783292]
[1738285362930,3.05558,3272.7,3272.6,0.2783292]
[1738285367951,3.05558,3272.7,3272.4,0.2783292]
[1738285370049,3.05544,3272.9,3272.4,0.2783292]
[1738285370377,3.05551,3272.8,3272.4,0.2783292]
[1738285370678,3.05536,3273.0,3272.4,0.2783292]
[1738285370975,3.05541,3272.9,3272.5,35.0]
[1738285371479,3.05541,3272.9,3272.5,35.2783292]
[1738285372683,3.05541,3272.9,3272.5,35.0]
[1738285374629,3.05549,3272.8,3272.3,0.5575]
[1738285375122,0.03059222,3272.7,3272.1,3.0]
[1738285375325,3.05584,3272.5,3272.2,0.206]
[1738285375759,3.05584,3272.5,3272.2,35.206]
[1738285376223,3.05546,3272.9,3272.2,35.206]
[1738285376425,3.05557,3272.8,3272.2,35.206]
[1738285376846,3.05557,3272.8,3272.3,0.28005568]
[1738285377065,3.05563,3272.7,3272.3,0.28005568]
[1738285377266,3.05564,3272.7,3272.3,0.28005568]
[1738285378065,3.05564,3272.7,3272.4,0.28005568]
[1738285378274,3.05567,3272.7,3272.4,0.28005568]
[1738285378872,0.0008,3273.5,3273.3,0.77]
[1738285379179,0.0008,3273.5,3273.0,0.55]
[1738285379348,0.0008,3273.5,3273.3,35.0]
[1738285381430,0.0008,3273.5,3273.3,35.28005568]
[1738285381675,3.05563,3273.5,3273.3,35.28005568]
[1738285381879,3.05992,3273.4,3273.3,35.28005568]
[1738285382234,0.005,3273.4,3273.3,35.28005568]
[1738285383169,0.005,3273.4,3273.3,0.28005568]
[1738285383363,3.05992,3273.4,3273.3,0.28005568]
[1738285385813,3.09051222,3273.4,3273.3,0.28005568]
[1738285385985,4.09335944,3273.4,3273.3,0.28005568]
[1738285386176,4.87255944,3273.4,3273.3,0.28005568]
[1738285386377,3.05511,3273.2,3273.1,0.28005568]
[1738285386577,3.08570222,3273.2,3273.1,0.28005568]
[1738285387569,6.85390222,3273.2,3273.1,0.28005568]
[1738285387774,7.91497694,3273.2,3273.1,0.28005568]
[1738285388009,3.05581,3272.5,3272.3,0.28005568]
[1738285388313,3.05586,3272.4,3272.3,0.28005568]
[1738285388485,3.05573,3272.6,3272.3,0.28005568]
[1738285389204,3.05586,3272.5,3272.3,0.28005568]
[1738285389512,3.05586,3272.4,3272.2,35.0]
[1738285389720,3.05595,3272.3,3272.2,35.0]
[1738285390209,3.05595,3272.3,3271.8,0.209]
[1738285390419,3.05595,3272.3,3271.8,3.209]
[1738285390601,3.05606,3272.2,3271.8,3.209]
[1738285390809,3.05606,3272.2,3271.9,35.0]
[1738285391110,3.05606,3272.2,3271.9,35.28013238]
[1738285391679,3.0562,3272.1,3271.9,35.28013238]
[1738285392406,3.0562,3272.1,3272.0,0.28013238]
[1738285392976,4.46731822,3272.1,3272.0,0.28013238]
[1738285393606,4.436726,3272.1,3272.0,0.28013238]
[1738285393916,3.05615,3272.1,3271.5,0.565]
[1738285394120,3.05628,3272.0,3271.5,0.565]
[1738285394413,3.05628,3272.0,3271.4,1.0126]
[1738285394616,3.05634,3271.9,3271.5,35.0]
[1738285395517,3.05615,3272.1,3271.6,0.565]
[1738285395703,3.05596,3272.3,3271.6,0.565]
[1738285396013,3.05596,3272.3,3271.7,0.209]
[1738285396214,3.05587,3272.4,3271.9,0.565]
[1738285396417,3.05605,3272.2,3271.8,35.0]
[1738285396712,3.05616,3272.1,3271.8,35.0]
[1738285397217,3.05616,3272.1,3271.9,0.27981456]
[1738285398761,3.05616,3272.1,3271.8,35.0]
[1738285398762,3.05623,3272.1,3271.8,35.0]
[1738285400006,3.88069,3272.5,3271.9,0.565]
[1738285400340,3.05621,3272.1,3271.8,35.0]
[1738285400686,3.05632,3271.9,3271.8,35.0]
[1738285400886,0.03059222,3272.4,3271.2,0.209]
[1738285400887,3.0567,3271.5,3271.2,0.209]
[1738285401134,0.8192,3271.8,3271.2,0.209]
[1738285401338,0.8192,3271.8,3271.3,0.27976633]
[1738285401339,3.0568,3271.4,3271.3,0.27976633]
[1738285401689,3.05668,3271.6,3271.3,0.27976633]
[1738285401888,3.05646,3271.8,3271.4,0.7775]
[1738285402120,3.05661,3271.6,3271.3,0.27976633]
[1738285402498,3.05643,3271.8,3271.3,0.27976633]
[1738285402817,0.7648,3272.2,3271.2,0.27976633]
[1738285402818,3.05679,3271.4,3271.2,0.27976633]
[1738285403293,3.0566,3271.6,3271.2,0.27976633]
[1738285404132,3.05677,3271.5,3271.2,0.27976633]
[1738285404754,3.05688,3271.3,3271.2,0.27976633]
[1738285404898,3.05677,3271.5,3271.2,0.27976633]
[1738285406017,3.05677,3271.5,3271.1,35.0]
[1738285406557,3.05653,3271.7,3271.0,0.565]
[1738285406721,3.05662,3271.6,3271.2,0.565]
[1738285407101,3.05662,3271.6,3271.3,35.0]
[1738285409449,3.05679,3271.4,3271.3,35.0]
[1738285409617,3.05679,3271.4,3271.0,0.773]
[1738285410031,3.05679,3271.4,3271.1,35.0]
[1738285410538,3.80822,3271.6,3271.1,35.0]
[1738285410759,3.05662,3271.6,3271.1,35.0]
[1738285413575,3.05644,3271.8,3271.2,0.565]
[1738285413776,3.05633,3271.9,3271.5,0.8079]
[1738285414289,3.05633,3271.9,3271.6,35.0]
[1738285414842,3.05633,3271.9,3271.5,0.8079]
[1738285415883,3.05648,3271.8,3271.4,0.015]
[1738285416088,3.05661,3271.6,3271.2,1.3026]
[1738285416298,3.0567,3271.5,3270.9,3.80982]
[1738285416589,3.0567,3271.5,3271.2,0.208]
[1738285416887,3.0567,3271.5,3271.1,0.015]
[1738285417054,3.05655,3271.7,3271.2,0.208]
[1738285417259,3.05655,3271.7,3271.2,0.758]
[1738285417604,3.05655,3271.7,3271.2,0.55]
[1738285417807,3.05655,3271.7,3271.2,0.757]
[1738285418104,3.05661,3271.6,3271.2,0.757]
[1738285418278,3.05632,3271.9,3271.3,0.015]
[1738285418693,3.05642,3271.8,3271.3,0.015]
[1738285420301,3.05632,3271.9,3271.3,0.015]
[1738285421074,3.05643,3271.8,3271.3,0.015]
[1738285421585,3.05643,3271.8,3271.3,0.565]
[1738285422618,3.05625,3272.0,3271.5,0.565]
[1738285423193,3.05636,3271.9,3271.5,0.565]
[1738285425716,3.05608,3272.2,3271.5,0.565]
[1738285425874,3.05624,3272.0,3271.5,0.565]
[1738285427881,3.05624,3272.0,3271.7,0.565]
[1738285428620,3.05593,3272.4,3271.9,0.7691]
[1738285428873,3.05593,3272.4,3271.9,0.79966017]
[1738285429022,3.05593,3272.4,3271.9,0.7691]
[1738285429707,3.05569,3272.6,3272.1,0.015]
[1738285430021,3.05569,3272.6,3272.3,0.015]
[1738285430223,3.05559,3272.7,3272.3,0.015]
[1738285433419,3.0557,3272.6,3272.3,0.015]
[1738285434927,3.05579,3272.5,3272.3,0.015]
[1738285436863,0.8025,3272.5,3271.9,0.7541]
[1738285437013,3.05642,3271.8,3271.7,0.46694479]
[1738285437654,3.05688,3271.4,3271.2,0.206]
[1738285437848,3.05688,3271.3,3271.1,0.46694479]
[1738285437994,3.90117222,3271.2,3271.1,0.46694479]
[1738285438194,3.87058,3271.2,3271.1,0.46694479]
[1738285438957,3.05721,3271.0,3270.7,0.0075]
[1738285440444,3.05721,3271.0,3270.7,0.5575]
[1738285440942,3.87058,3271.2,3270.7,0.5575]
[1738285441263,3.05708,3271.1,3270.7,0.5575]
[1738285441416,3.05719,3271.0,3270.7,0.5575]
[1738285442751,0.7567,3271.4,3270.8,0.03807252]
[1738285443045,3.05669,3271.6,3270.8,0.0075]
[1738285443344,3.05715,3271.1,3270.7,0.206]
[1738285443644,3.05694,3271.3,3270.7,0.55]
[1738285443811,3.05694,3271.3,3270.8,0.015]
[1738285444056,3.05673,3271.5,3270.9,0.015]
[1738285444229,3.05681,3271.4,3270.9,0.565]
[1738285444847,3.05673,3271.5,3270.9,0.015]
[1738285445045,3.05685,3271.4,3270.9,0.015]
[1738285446698,6.89123,3271.7,3271.0,0.772]
[1738285447036,3.05673,3271.5,3271.0,1.322]
[1738285448029,6.89123,3271.7,3271.0,4.37913]
[1738285448229,3.05661,3271.6,3271.0,1.322]
[1738285448555,3.05671,3271.5,3271.0,1.322]
[1738285451917,6.89121,3271.7,3271.0,4.58416]
[1738285452233,3.05662,3271.6,3271.0,4.58416]
[1738285453601,3.83464,3271.7,3271.0,4.58416]
[1738285453602,3.83464,3271.7,3271.1,0.015]
[1738285453903,3.05643,3271.8,3271.3,0.0075]
[1738285455235,3.05652,3271.7,3271.1,0.565]
[1738285455647,3.05652,3271.7,3271.1,3.62203]
[1738285455850,3.05642,3271.8,3271.3,0.5575]
[1738285459370,3.05663,3271.6,3271.2,0.7625]
[1738285459518,3.86709,3272.0,3271.4,0.55]
[1738285459724,3.05622,3272.1,3271.5,0.565]
[1738285459924,3.05622,3272.1,3271.6,0.7667]
[1738285460224,3.05587,3272.4,3271.7,3.62148]
[1738285460433,3.05587,3272.4,3271.9,0.565]
[1738285460783,3.05551,3272.8,3272.1,0.565]
[1738285461088,3.05551,3272.8,3272.3,0.565]
[1738285462380,3.66245551,3273.0,3272.5,0.565]
[1738285462875,3.05541,3272.9,3272.5,0.565]
[1738285463286,0.03059222,3272.8,3272.4,0.205]
[1738285463436,3.05558,3272.7,3272.4,0.205]
[1738285463996,3.05543,3272.9,3272.4,0.205]
[1738285467578,3.05545,3272.9,3272.4,0.205]
[1738285469039,3.0552,3273.1,3272.6,0.8044]
[1738285469240,3.0552,3273.1,3272.7,0.55]
[1738285470981,3.0554,3272.9,3272.7,0.55]
[1738285471182,3.05538,3273.0,3272.7,0.55]
[1738285471985,3.05521,3273.1,3272.7,0.55]
[1738285472482,3.05512,3273.2,3272.8,0.015]
[1738285472983,3.05525,3273.1,3272.8,0.015]
[1738285473566,3.05512,3273.2,3272.8,0.015]
[1738285473761,3.05523,3273.1,3272.8,0.015]
[1738285474118,3.05512,3273.2,3272.8,0.015]
[1738285474274,3.05531,3273.0,3272.8,0.015]
[1738285474953,3.05512,3273.2,3272.8,0.015]
[1738285475352,3.05512,3273.2,3272.9,35.0]
[1738285475956,3.05512,3273.2,3272.8,0.015]
[1738285476272,3.05502,3273.3,3272.8,0.015]
[1738285476441,3.05502,3273.3,3272.9,35.0]
[1738285477255,0.005,3273.4,3272.9,35.0]
[1738285477468,3.05999,3273.4,3272.9,35.0]
[1738285477785,3.05511,3273.2,3272.9,35.0]
[1738285479055,3.05999,3273.4,3273.0,0.565]
[1738285479483,3.05999,3273.4,3273.0,0.015]
[1738285479664,3.05999,3273.4,3273.1,35.0]
[1738285480054,3.05509,3273.3,3273.1,35.0]
[1738285484201,0.005,3273.4,3273.1,35.0]
[1738285484407,0.005,3273.4,3273.2,1.3282]
[1738285484973,0.005,3273.4,3273.3,35.565]
[1738285487871,0.005,3273.4,3273.3,0.565]
[1738285492422,0.005,3273.4,3273.3,35.565]
[1738285496695,3.05992,3273.4,3273.3,35.565]
[1738285497022,3.05992,3273.4,3273.3,35.0]
[1738285497220,3.05992,3273.4,3273.3,35.565]
[1738285497221,0.005,3273.4,3273.3,35.565]
[1738285498055,0.005,3273.4,3273.3,35.0]
[1738285498257,3.05992,3273.4,3273.3,35.0]
[1738285498461,0.7884,3273.3,3272.6,0.7765]
[1738285498663,3.05536,3273.0,3272.8,0.202]
[1738285498832,3.05539,3272.9,3272.8,0.2095]
[1738285499172,3.05539,3272.9,3272.8,35.202]
[1738285499320,3.05539,3272.9,3272.8,35.0]
[1738285500917,3.05548,3272.8,3272.1,0.8101]
[1738285501114,0.03059222,3272.7,3272.1,0.202]
[1738285501416,3.05604,3272.2,3272.0,0.46687327]
[1738285501866,3.05604,3272.2,3272.0,0.015]
[1738285502163,3.05503,3273.3,3272.6,3.05559]
[1738285502370,3.05503,3273.3,3272.9,0.55]
[1738285502877,3.05512,3273.2,3273.0,35.0]
[1738285503459,3.05998,3273.4,3273.0,35.0]
[1738285503642,0.005,3273.4,3273.1,3.6507511]
[1738285503854,0.005,3273.4,3273.1,0.015]
[1738285504017,0.005,3273.4,3273.1,0.565]
[1738285504234,0.005,3273.4,3273.3,0.565]
[1738285504583,3.05502,3273.3,3273.1,0.203]
[1738285505089,0.005,3273.4,3273.3,3.05502]
[1738285505255,0.005,3273.4,3273.3,3.62002]
[1738285505687,0.005,3273.4,3273.3,38.62002]
[1738285506785,0.005,3273.4,3273.3,35.565]
[1738285506973,0.005,3273.4,3273.3,35.0]
[1738285507173,3.05502,3273.3,3273.2,0.203]
[1738285507868,3.05513,3273.2,3272.7,35.0]
[1738285508055,0.688124,3273.3,3272.4,3.52264327]
[1738285508056,3.05548,3272.8,3272.4,0.46687327]
[1738285508275,3.05576,3272.5,3272.4,0.46687327]
[1738285509469,3.05576,3272.5,3272.3,35.0]
[1738285509652,3.05586,3272.4,3272.3,35.0]
[1738285509876,0.8097,3272.9,3272.3,35.0]
[1738285510080,3.05559,3272.7,3272.1,0.565]
[1738285510598,3.05567,3272.6,3272.2,35.0]
[1738285510889,0.03059222,3272.8,3272.2,35.0]
[1738285510890,3.05589,3272.4,3272.2,35.0]
[1738285511102,3.05595,3272.3,3272.2,35.0]
[1738285511302,3.05632,3271.9,3271.8,2.419]
[1738285511652,3.87717,3272.3,3271.9,0.015]
[1738285511879,3.05606,3272.2,3271.9,0.565]
[1738285512195,3.0,3272.9,3271.9,0.565]
[1738285512348,3.05587,3272.4,3271.9,0.565]
[1738285512992,0.03059222,3272.3,3271.9,0.55]
[1738285513190,3.05615,3272.1,3271.8,37.623]
[1738285514746,3.05596,3272.3,3271.9,0.565]
[1738285514986,3.05579,3272.5,3271.9,0.565]
[1738285515291,3.05589,3272.4,3271.9,0.565]
[1738285515525,3.05607,3272.2,3271.9,0.565]
[1738285516218,3.05586,3272.4,3271.9,0.565]
[1738285518010,3.05614,3272.1,3271.8,2.419]
[1738285518321,0.7972,3273.4,3272.0,0.565]
[1738285518482,0.7972,3273.4,3272.5,35.0]
[1738285518483,3.05537,3273.0,3272.5,35.0]
[1738285519169,3.05537,3273.0,3272.5,35.753]
[1738285519987,3.85214,3273.4,3272.6,0.565]
[1738285520321,3.05507,3273.3,3272.6,3.6206]
[1738285520626,3.05514,3273.2,3272.6,3.6206]
[1738285520968,3.05514,3273.2,3272.6,3.65115375]
[1738285521203,3.85214,3273.4,3272.9,0.565]
[1738285521404,3.05994,3273.4,3272.9,0.59555077]
[1738285521586,0.005,3273.4,3272.9,3.65094077]
[1738285521768,0.005,3273.4,3273.1,0.5575]
[1738285522407,0.005,3273.4,3273.2,0.0075]
[1738285522915,0.005,3273.4,3273.3,0.565]
[1738285523293,0.005,3273.4,3273.3,0.59554816]
[1738285523643,0.005,3273.4,3273.3,38.65056816]
[1738285523811,0.005,3273.4,3273.3,38.62002]
[1738285524332,0.005,3273.4,3273.3,39.37282]
[1738285528544,0.005,3273.4,3273.3,36.5208]
[1738285529397,0.005,3273.4,3273.3,0.0075]
[1738285529595,3.05993,3273.4,3273.2,0.203]
[1738285529799,3.05993,3273.4,3273.3,0.5575]
[1738285530295,3.05993,3273.4,3273.1,0.7605]
[1738285530497,3.05512,3273.2,3273.1,0.203]
[1738285531215,3.05534,3273.0,3272.7,0.203]
[1738285531604,3.05534,3273.0,3272.8,0.55]
[1738285531805,3.05534,3273.0,3272.7,0.203]
[1738285532232,3.05534,3273.0,3272.8,0.55]
[1738285532435,0.08333721,3272.9,3272.8,0.55]
[1738285532948,3.05534,3273.0,3272.8,0.55]
[1738285533259,0.08395591,3272.9,3272.8,0.55]
[1738285533749,3.05534,3273.0,3272.8,0.55]
[1738285533908,0.08396118,3272.9,3272.8,0.55]
[1738285534290,3.05534,3273.0,3272.8,0.55]
[1738285534598,0.08395591,3272.9,3272.8,0.55]
[1738285534845,3.05534,3273.0,3272.8,0.55]
[1738285535154,0.08396118,3272.9,3272.8,0.55]
[1738285535322,3.05534,3273.0,3272.8,0.55]
[1738285535533,0.08396645,3272.9,3272.8,0.55]
[1738285535734,3.05534,3273.0,3272.8,0.55]
[1738285535933,0.08397794,3272.9,3272.8,0.55]
[1738285536232,3.05534,3273.0,3272.8,0.55]
[1738285536622,0.08396837,3272.9,3272.8,0.55]
[1738285537261,3.05512,3273.2,3272.8,0.55]
[1738285537411,0.08398417,3272.9,3272.8,0.59555344]
[1738285537614,3.84073,3273.4,3272.9,0.015]
[1738285537827,3.05506,3273.3,3272.9,0.015]
[1738285538386,3.05515,3273.2,3272.9,0.015]
[1738285542480,3.84073,3273.4,3272.9,0.015]
[1738285543379,3.05511,3273.2,3272.9,0.015]
[1738285545069,3.05523,3273.1,3272.9,0.015]
[1738285545604,0.08395677,3273.0,3272.9,0.015]
[1738285546181,3.13925677,3273.0,3272.9,0.015]
[1738285546385,3.05558,3272.7,3272.5,0.55949271]
[1738285546753,3.05558,3272.7,3272.6,0.015]
[1738285547088,3.05558,3272.7,3272.5,0.35749271]
[1738285547089,3.05567,3272.6,3272.5,0.35749271]
[1738285547295,3.08626222,3272.6,3272.5,0.35749271]
[1738285548487,3.05602,3272.3,3272.0,0.565]
[1738285549488,3.05608,3272.2,3272.0,0.565]
[1738285549652,3.05631,3272.0,3271.8,2.419]
[1738285551181,3.05632,3271.9,3271.6,0.565]
[1738285551685,3.05643,3271.8,3271.5,0.202]
[1738285551980,3.05643,3271.8,3271.6,0.55]
[1738285552137,3.05651,3271.7,3271.6,0.55]
[1738285553085,3.05651,3271.7,3271.5,0.55]
[1738285553440,3.05651,3271.7,3271.2,4.16227344]
[1738285553686,3.05651,3271.7,3271.3,0.202]
[1738285553842,6.11275,3271.9,3271.4,0.565]
[1738285554044,3.05643,3271.8,3271.4,0.565]
[1738285554237,3.05652,3271.7,3271.4,0.565]
[1738285555084,3.05652,3271.7,3271.3,0.767]
[1738285555875,1.377688,3271.7,3271.1,0.56027344]
[1738285556044,3.05695,3271.3,3271.1,0.202]
[1738285556249,3.05698,3271.2,3271.1,0.202]
[1738285556818,3.05683,3271.4,3271.1,0.202]
[1738285556993,3.82292,3271.7,3271.2,0.565]
[1738285557286,3.05673,3271.5,3271.1,0.202]
[1738285557496,3.05693,3271.3,3271.1,0.202]
[1738285559310,3.05673,3271.5,3271.1,0.202]
[1738285559493,3.05644,3271.8,3271.4,0.55]
[1738285560182,3.05632,3272.0,3271.4,0.55]
[1738285560393,0.08267158,3271.7,3271.5,0.015]
[1738285560625,3.05632,3272.0,3271.5,0.015]
[1738285560626,3.05634,3271.9,3271.5,0.015]
[1738285560792,0.0826617,3271.6,3271.5,0.015]
[1738285560963,3.05634,3271.9,3271.5,0.015]
[1738285561162,0.08266793,3271.6,3271.5,0.015]
[1738285561345,3.05632,3272.0,3271.5,0.015]
[1738285561547,0.08271624,3271.9,3271.5,0.015]
[1738285562186,3.13904624,3271.9,3271.5,0.015]
[1738285563490,0.08271624,3271.9,3271.5,0.015]
[1738285563688,0.08271624,3271.9,3271.7,0.015]
[1738285563888,3.05615,3272.1,3271.7,0.015]
[1738285564190,3.05624,3272.0,3271.7,0.015]
[1738285564432,3.13896708,3272.0,3271.7,0.015]
[1738285564992,0.82159222,3271.9,3270.7,1.25077327]
[1738285565195,0.7556,3271.8,3270.7,0.46687327]
[1738285565493,3.78098391,3271.1,3270.7,0.46687327]
[1738285565693,3.05731,3270.9,3270.7,0.46687327]
[1738285565894,3.05735,3270.8,3270.7,0.46687327]
[1738285566096,3.13997461,3270.8,3270.7,0.46687327]
[1738285566696,0.08262461,3270.8,3270.6,0.55]
[1738285566992,3.05744,3270.7,3270.6,0.55]
[1738285567204,3.05754,3270.6,3270.5,2.419]
[1738285567355,3.37155327,3270.6,3270.5,2.419]
[1738285567555,3.48438828,3270.6,3270.5,2.419]
[1738285567794,3.13978279,3270.6,3270.5,2.419]
[1738285569192,3.91098279,3270.6,3270.5,2.419]
[1738285569972,3.05767,3270.5,3270.0,0.202]
[1738285570172,3.05767,3270.5,3269.9,0.55]
[1738285570373,0.0820719,3270.4,3269.9,0.752]
[1738285570600,0.0820719,3270.4,3270.0,0.015]
[1738285570801,3.82874,3270.6,3270.1,0.7799]
[1738285570802,3.05754,3270.6,3270.1,0.7799]
[1738285570974,0.08203997,3270.3,3270.1,0.7799]
[1738285571175,3.05754,3270.6,3270.1,0.7799]
[1738285571497,0.08202386,3270.2,3270.1,1.3299]
[1738285571986,3.05764,3270.5,3270.1,1.3299]
[1738285572187,0.08202386,3270.2,3270.1,0.55]
[1738285572406,3.05764,3270.5,3270.1,0.55]
[1738285572709,0.08202386,3270.2,3270.1,0.55]
[1738285572912,3.05764,3270.5,3270.1,0.55]
[1738285573290,3.05788,3270.3,3270.1,0.55]
[1738285573615,0.08205214,3270.2,3270.1,0.55]
[1738285573785,3.05764,3270.5,3270.1,0.55]
[1738285573987,3.05747,3270.7,3270.4,0.772]